{"text_format":"3","workbook":"xlsx","n_sheets":2,"sheets":["Malzeme Envanteri","Ayarlar"],"not_rendered":{"defined_names":4},"read":"whole","date_system":"1900"}

{"sheet":"Malzeme Envanteri","index":0,"n_rows":35,"n_cols":6,"rows_kept":35,"merged":[[0,1,2,2],[0,4,0,5]]}
[]
[{"$nulls":4},"Şu tarihten daha eski eşyaları vurgula:"]
[{"$nulls":4},4]
[]
[null,"MALZEME NO","EŞYA ADI","ATANDIĞI KİŞİ","VERİLİŞ TARİHİ","EŞYANIN YAŞI"]
[null,"EŞYA0001","sandalye","Çalışan 1",{"$f":"TODAY()-25","v":"2012-10-26"},{"$f":"IF(tblMalzemeEnvanteri[[#This Row],[VERİLİŞ TARİHİ]]<>\"\",TODAY()-tblMalzemeEnvanteri[[#This Row],[VERİLİŞ TARİHİ]],\"\")","v":{"v":25,"d":"25 gün"}}]
[null,"EŞYA0002","lazer yazıcı","Çalışan 2",{"$f":"TODAY()-479","v":"2011-07-30"},{"$f":"IF(tblMalzemeEnvanteri[[#This Row],[VERİLİŞ TARİHİ]]<>\"\",TODAY()-tblMalzemeEnvanteri[[#This Row],[VERİLİŞ TARİHİ]],\"\")","v":{"v":479,"d":"479 gün"}}]
[null,"EŞYA0003","tarayıcı","Çalışan 3",{"$f":"TODAY()-177","v":"2012-05-27"},{"$f":"IF(tblMalzemeEnvanteri[[#This Row],[VERİLİŞ TARİHİ]]<>\"\",TODAY()-tblMalzemeEnvanteri[[#This Row],[VERİLİŞ TARİHİ]],\"\")","v":{"v":177,"d":"177 gün"}}]
[null,"EŞYA0004","lazer yazıcı","Çalışan 7",{"$f":"TODAY()-18","v":"2012-11-02"},{"$f":"IF(tblMalzemeEnvanteri[[#This Row],[VERİLİŞ TARİHİ]]<>\"\",TODAY()-tblMalzemeEnvanteri[[#This Row],[VERİLİŞ TARİHİ]],\"\")","v":{"v":18,"d":"18 gün"}}]
[null,"EŞYA0005","kahve makinesi","Çalışan 20",{"$f":"TODAY()-227","v":"2012-04-07"},{"$f":"IF(tblMalzemeEnvanteri[[#This Row],[VERİLİŞ TARİHİ]]<>\"\",TODAY()-tblMalzemeEnvanteri[[#This Row],[VERİLİŞ TARİHİ]],\"\")","v":{"v":227,"d":"227 gün"}}]
[null,"EŞYA0006","tarayıcı","Çalışan 14",{"$f":"TODAY()-50","v":"2012-10-01"},{"$f":"IF(tblMalzemeEnvanteri[[#This Row],[VERİLİŞ TARİHİ]]<>\"\",TODAY()-tblMalzemeEnvanteri[[#This Row],[VERİLİŞ TARİHİ]],\"\")","v":{"v":50,"d":"50 gün"}}]
[null,"EŞYA0007","masa","Çalışan 4",{"$f":"TODAY()-120","v":"2012-07-23"},{"$f":"IF(tblMalzemeEnvanteri[[#This Row],[VERİLİŞ TARİHİ]]<>\"\",TODAY()-tblMalzemeEnvanteri[[#This Row],[VERİLİŞ TARİHİ]],\"\")","v":{"v":120,"d":"120 gün"}}]
[null,"EŞYA0008","fotokopi makinesi","Çalışan 12",{"$f":"TODAY()-499","v":"2011-07-10"},{"$f":"IF(tblMalzemeEnvanteri[[#This Row],[VERİLİŞ TARİHİ]]<>\"\",TODAY()-tblMalzemeEnvanteri[[#This Row],[VERİLİŞ TARİHİ]],\"\")","v":{"v":499,"d":"499 gün"}}]
[null,"EŞYA0009","yedek ekran","Çalışan 8",{"$f":"TODAY()-30","v":"2012-10-21"},{"$f":"IF(tblMalzemeEnvanteri[[#This Row],[VERİLİŞ TARİHİ]]<>\"\",TODAY()-tblMalzemeEnvanteri[[#This Row],[VERİLİŞ TARİHİ]],\"\")","v":{"v":30,"d":"30 gün"}}]
[null,"EŞYA0010","beyaz tahta","Çalışan 19",{"$f":"TODAY()-50","v":"2012-10-01"},{"$f":"IF(tblMalzemeEnvanteri[[#This Row],[VERİLİŞ TARİHİ]]<>\"\",TODAY()-tblMalzemeEnvanteri[[#This Row],[VERİLİŞ TARİHİ]],\"\")","v":{"v":50,"d":"50 gün"}}]
[null,"EŞYA0011","fotokopi makinesi","Çalışan 12",{"$f":"TODAY()-450","v":"2011-08-28"},{"$f":"IF(tblMalzemeEnvanteri[[#This Row],[VERİLİŞ TARİHİ]]<>\"\",TODAY()-tblMalzemeEnvanteri[[#This Row],[VERİLİŞ TARİHİ]],\"\")","v":{"v":450,"d":"450 gün"}}]
[null,"EŞYA0012","kırtasiye","Çalışan 18",{"$f":"TODAY()-420","v":"2011-09-27"},{"$f":"IF(tblMalzemeEnvanteri[[#This Row],[VERİLİŞ TARİHİ]]<>\"\",TODAY()-tblMalzemeEnvanteri[[#This Row],[VERİLİŞ TARİHİ]],\"\")","v":{"v":420,"d":"420 gün"}}]
[null,"EŞYA0013","yedek ekran","Çalışan 8",{"$f":"TODAY()-250","v":"2012-03-15"},{"$f":"IF(tblMalzemeEnvanteri[[#This Row],[VERİLİŞ TARİHİ]]<>\"\",TODAY()-tblMalzemeEnvanteri[[#This Row],[VERİLİŞ TARİHİ]],\"\")","v":{"v":250,"d":"250 gün"}}]
[null,"EŞYA0014","kahve makinesi","Çalışan 9",{"$f":"TODAY()-45","v":"2012-10-06"},{"$f":"IF(tblMalzemeEnvanteri[[#This Row],[VERİLİŞ TARİHİ]]<>\"\",TODAY()-tblMalzemeEnvanteri[[#This Row],[VERİLİŞ TARİHİ]],\"\")","v":{"v":45,"d":"45 gün"}}]
[null,"EŞYA0015","kırtasiye","Çalışan 13",{"$f":"TODAY()-502","v":"2011-07-07"},{"$f":"IF(tblMalzemeEnvanteri[[#This Row],[VERİLİŞ TARİHİ]]<>\"\",TODAY()-tblMalzemeEnvanteri[[#This Row],[VERİLİŞ TARİHİ]],\"\")","v":{"v":502,"d":"502 gün"}}]
[null,"EŞYA0016","tarayıcı","Çalışan 1",{"$f":"TODAY()-350","v":"2011-12-06"},{"$f":"IF(tblMalzemeEnvanteri[[#This Row],[VERİLİŞ TARİHİ]]<>\"\",TODAY()-tblMalzemeEnvanteri[[#This Row],[VERİLİŞ TARİHİ]],\"\")","v":{"v":350,"d":"350 gün"}}]
[null,"EŞYA0017","fotokopi makinesi","Çalışan 19",{"$f":"TODAY()-125","v":"2012-07-18"},{"$f":"IF(tblMalzemeEnvanteri[[#This Row],[VERİLİŞ TARİHİ]]<>\"\",TODAY()-tblMalzemeEnvanteri[[#This Row],[VERİLİŞ TARİHİ]],\"\")","v":{"v":125,"d":"125 gün"}}]
[null,"EŞYA0018","beyaz tahta","Çalışan 15",{"$f":"TODAY()-90","v":"2012-08-22"},{"$f":"IF(tblMalzemeEnvanteri[[#This Row],[VERİLİŞ TARİHİ]]<>\"\",TODAY()-tblMalzemeEnvanteri[[#This Row],[VERİLİŞ TARİHİ]],\"\")","v":{"v":90,"d":"90 gün"}}]
[null,"EŞYA0019","sandalye","Çalışan 16",{"$f":"TODAY()-730","v":"2010-11-21"},{"$f":"IF(tblMalzemeEnvanteri[[#This Row],[VERİLİŞ TARİHİ]]<>\"\",TODAY()-tblMalzemeEnvanteri[[#This Row],[VERİLİŞ TARİHİ]],\"\")","v":{"v":730,"d":"730 gün"}}]
[null,"EŞYA0020","toz bezi (1 dizi)","Çalışan 3",{"$f":"TODAY()-540","v":"2011-05-30"},{"$f":"IF(tblMalzemeEnvanteri[[#This Row],[VERİLİŞ TARİHİ]]<>\"\",TODAY()-tblMalzemeEnvanteri[[#This Row],[VERİLİŞ TARİHİ]],\"\")","v":{"v":540,"d":"540 gün"}}]
[null,"EŞYA0021","lazer yazıcı","Çalışan 7",{"$f":"TODAY()-18","v":"2012-11-02"},{"$f":"IF(tblMalzemeEnvanteri[[#This Row],[VERİLİŞ TARİHİ]]<>\"\",TODAY()-tblMalzemeEnvanteri[[#This Row],[VERİLİŞ TARİHİ]],\"\")","v":{"v":18,"d":"18 gün"}}]
[null,"EŞYA0022","dizüstü bilgisayar","Çalışan 8",{"$f":"TODAY()-283","v":"2012-02-11"},{"$f":"IF(tblMalzemeEnvanteri[[#This Row],[VERİLİŞ TARİHİ]]<>\"\",TODAY()-tblMalzemeEnvanteri[[#This Row],[VERİLİŞ TARİHİ]],\"\")","v":{"v":283,"d":"283 gün"}}]
[null,"EŞYA0023","kırtasiye","Çalışan 9",{"$f":"TODAY()-479","v":"2011-07-30"},{"$f":"IF(tblMalzemeEnvanteri[[#This Row],[VERİLİŞ TARİHİ]]<>\"\",TODAY()-tblMalzemeEnvanteri[[#This Row],[VERİLİŞ TARİHİ]],\"\")","v":{"v":479,"d":"479 gün"}}]
[null,"EŞYA0024","lazer yazıcı","Çalışan 19",{"$f":"TODAY()-355","v":"2011-12-01"},{"$f":"IF(tblMalzemeEnvanteri[[#This Row],[VERİLİŞ TARİHİ]]<>\"\",TODAY()-tblMalzemeEnvanteri[[#This Row],[VERİLİŞ TARİHİ]],\"\")","v":{"v":355,"d":"355 gün"}}]
[null,"EŞYA0025","masa","Çalışan 7",{"$f":"TODAY()-28","v":"2012-10-23"},{"$f":"IF(tblMalzemeEnvanteri[[#This Row],[VERİLİŞ TARİHİ]]<>\"\",TODAY()-tblMalzemeEnvanteri[[#This Row],[VERİLİŞ TARİHİ]],\"\")","v":{"v":28,"d":"28 gün"}}]
[null,"EŞYA0026","beyaz tahta","Çalışan 8",{"$f":"TODAY()-28","v":"2012-10-23"},{"$f":"IF(tblMalzemeEnvanteri[[#This Row],[VERİLİŞ TARİHİ]]<>\"\",TODAY()-tblMalzemeEnvanteri[[#This Row],[VERİLİŞ TARİHİ]],\"\")","v":{"v":28,"d":"28 gün"}}]
[null,"EŞYA0027","dizüstü bilgisayar","Çalışan 19",{"$f":"TODAY()-736","v":"2010-11-15"},{"$f":"IF(tblMalzemeEnvanteri[[#This Row],[VERİLİŞ TARİHİ]]<>\"\",TODAY()-tblMalzemeEnvanteri[[#This Row],[VERİLİŞ TARİHİ]],\"\")","v":{"v":736,"d":"736 gün"}}]
[null,"EŞYA0028","masa","Çalışan 12",{"$f":"TODAY()-68","v":"2012-09-13"},{"$f":"IF(tblMalzemeEnvanteri[[#This Row],[VERİLİŞ TARİHİ]]<>\"\",TODAY()-tblMalzemeEnvanteri[[#This Row],[VERİLİŞ TARİHİ]],\"\")","v":{"v":68,"d":"68 gün"}}]
[null,"EŞYA0029","tarayıcı","Çalışan 14",{"$f":"TODAY()-67","v":"2012-09-14"},{"$f":"IF(tblMalzemeEnvanteri[[#This Row],[VERİLİŞ TARİHİ]]<>\"\",TODAY()-tblMalzemeEnvanteri[[#This Row],[VERİLİŞ TARİHİ]],\"\")","v":{"v":67,"d":"67 gün"}}]
[null,"EŞYA0030","kahve makinesi","Çalışan 3",{"$f":"TODAY()-149","v":"2012-06-24"},{"$f":"IF(tblMalzemeEnvanteri[[#This Row],[VERİLİŞ TARİHİ]]<>\"\",TODAY()-tblMalzemeEnvanteri[[#This Row],[VERİLİŞ TARİHİ]],\"\")","v":{"v":149,"d":"149 gün"}}]

{"sheet":"Ayarlar","index":1,"n_rows":23,"n_cols":4,"rows_kept":23}
[]
[]
[null,"ÇALIŞANLAR",null,"EŞYALAR"]
[null,"Çalışan 1",null,"sandalye"]
[null,"Çalışan 2",null,"kahve makinesi"]
[null,"Çalışan 3",null,"fotokopi makinesi"]
[null,"Çalışan 4",null,"masaüstü bilgisayar"]
[null,"Çalışan 5",null,"toz bezi (1 dizi)"]
[null,"Çalışan 6",null,"yedek ekran"]
[null,"Çalışan 7",null,"mürekkep püskürtmeli yazıcı"]
[null,"Çalışan 8",null,"dizüstü bilgisayar"]
[null,"Çalışan 9",null,"lazer yazıcı"]
[null,"Çalışan 10",null,"tahta kalemi (3 paket)"]
[null,"Çalışan 11",null,"tarayıcı"]
[null,"Çalışan 12",null,"kırtasiye"]
[null,"Çalışan 13",null,"masa"]
[null,"Çalışan 14",null,"USB sürücüsü"]
[null,"Çalışan 15",null,"beyaz tahta"]
[null,"Çalışan 16"]
[null,"Çalışan 17"]
[null,"Çalışan 18"]
[null,"Çalışan 19"]
[null,"Çalışan 20"]